[Event "Titled Tuesday Blitz May 23 Early 2023"]
[White "Dubov, Daniil"]
[Black "Shukhman, Anna"]
[WhiteFideId "24126055"]
[BlackFideId "54180058"]
[WhiteElo "2793"]
[BlackElo "2235"]
[Result "1-0"]
[Round "08"]
[TimeControl "180+2"]
[Date "2023.05.23"]
[WhiteClock "0:02:43"]
[BlackClock "0:01:57"]

1. e4 {[%clk 0:02:58]}  c5 {[%clk 0:02:58]} 2. Nc3 {[%clk 0:02:59]}  e6 {[%clk 0:02:58]} 3. g3 {[%clk 0:03:00]}  Nc6 {[%clk 0:02:58]} 4. Bg2 {[%clk 0:03:01]}  g6 {[%clk 0:02:58]} 5. Nge2 {[%clk 0:03:02]}  Bg7 {[%clk 0:02:58]} 6. O-O {[%clk 0:03:03]}  Nge7 {[%clk 0:02:59]} 7. d3 {[%clk 0:03:03]}  O-O {[%clk 0:02:59]} 8. Be3 {[%clk 0:03:03]}  Nd4 {[%clk 0:02:58]} 9. f4 {[%clk 0:03:04]}  d6 {[%clk 0:02:53]} 10. Bf2 {[%clk 0:03:04]}  Rb8 {[%clk 0:02:49]} 11. Nxd4 {[%clk 0:03:04]}  cxd4 {[%clk 0:02:49]} 12. Ne2 {[%clk 0:03:05]}  e5 {[%clk 0:02:49]} 13. c3 {[%clk 0:03:02]}  dxc3 {[%clk 0:02:48]} 14. Nxc3 {[%clk 0:03:00]}  f5 {[%clk 0:02:43]} 15. Bxa7 {[%clk 0:02:55]}  Ra8 {[%clk 0:02:43]} 16. Qb3+ {[%clk 0:02:55]}  Kh8 {[%clk 0:02:42]} 17. Bb6 {[%clk 0:02:56]}  Qe8 {[%clk 0:02:41]} 18. Rae1 {[%clk 0:02:53]}  exf4 {[%clk 0:02:37]} 19. exf5 {[%clk 0:02:48]}  Bxf5 {[%clk 0:02:25]} 20. Nd5 {[%clk 0:02:48]}  Rf7 {[%clk 0:02:25]} 21. Nc7 {[%clk 0:02:49]}  Qf8 {[%clk 0:02:21]} 22. Nxa8 {[%clk 0:02:48]}  fxg3 {[%clk 0:02:20]} 23. hxg3 {[%clk 0:02:48]}  Nc6 {[%clk 0:02:13]} 24. Nc7 {[%clk 0:02:45]}  Nd4 {[%clk 0:02:09]} 25. Qxf7 {[%clk 0:02:41]}  Qxf7 {[%clk 0:02:08]} 26. Re8+ {[%clk 0:02:42]}  Bf8 {[%clk 0:02:03]} 27. Bxd4+ {[%clk 0:02:42]}  Kg8 {[%clk 0:01:57]} 28. Bd5 {[%clk 0:02:43]} 1-0


[Site "https://www.chess.com"]

[Event "Titled Tuesday Blitz May 23 Early 2023"]
[White "Galchenko, Matvey"]
[Black "Begmuratov, Alisher"]
[WhiteFideId "24175480"]
[BlackFideId "14203367"]
[WhiteElo "2423"]
[BlackElo "2387"]
[Result "1-0"]
[Round "08"]
[TimeControl "180+2"]
[Date "2023.05.23"]
[WhiteClock "0:00:05"]
[BlackClock "0:00:06"]

1. f4 {[%clk 0:02:58]}  c5 {[%clk 0:02:57]} 2. Nf3 {[%clk 0:02:57]}  Nc6 {[%clk 0:02:57]} 3. g3 {[%clk 0:02:57]}  g6 {[%clk 0:02:56]} 4. Bg2 {[%clk 0:02:58]}  Bg7 {[%clk 0:02:57]} 5. O-O {[%clk 0:02:58]}  b6 {[%clk 0:02:56]} 6. d3 {[%clk 0:02:59]}  Bb7 {[%clk 0:02:56]} 7. e4 {[%clk 0:02:59]}  e6 {[%clk 0:02:55]} 8. Nc3 {[%clk 0:02:59]}  Nge7 {[%clk 0:02:56]} 9. Be3 {[%clk 0:02:58]}  O-O {[%clk 0:02:55]} 10. d4 {[%clk 0:02:57]}  cxd4 {[%clk 0:02:54]} 11. Nxd4 {[%clk 0:02:57]}  d5 {[%clk 0:02:52]} 12. Nxc6 {[%clk 0:02:34]}  Bxc6 {[%clk 0:02:49]} 13. e5 {[%clk 0:02:35]}  Rc8 {[%clk 0:02:41]} 14. Ne2 {[%clk 0:02:14]}  Nf5 {[%clk 0:02:32]} 15. Bf2 {[%clk 0:02:13]}  Bb5 {[%clk 0:02:30]} 16. Re1 {[%clk 0:01:58]}  Bxe2 {[%clk 0:02:17]} 17. Qxe2 {[%clk 0:01:57]}  Qc7 {[%clk 0:02:14]} 18. c3 {[%clk 0:01:55]}  Rfd8 {[%clk 0:02:12]} 19. Rad1 {[%clk 0:01:54]}  Bf8 {[%clk 0:02:12]} 20. g4 {[%clk 0:01:52]}  Ng7 {[%clk 0:02:09]} 21. Kh1 {[%clk 0:01:48]}  Bc5 {[%clk 0:02:08]} 22. Bh4 {[%clk 0:01:48]}  Be7 {[%clk 0:02:07]} 23. Bg3 {[%clk 0:01:49]}  Qc4 {[%clk 0:02:05]} 24. Qxc4 {[%clk 0:01:42]}  Rxc4 {[%clk 0:02:06]} 25. h3 {[%clk 0:01:25]}  Rc7 {[%clk 0:01:56]} 26. Bf3 {[%clk 0:01:21]}  b5 {[%clk 0:01:44]} 27. Rd4 {[%clk 0:01:09]}  Bc5 {[%clk 0:01:40]} 28. Rd3 {[%clk 0:01:09]}  Rb8 {[%clk 0:01:32]} 29. a3 {[%clk 0:01:04]}  a5 {[%clk 0:01:32]} 30. Rc1 {[%clk 0:00:56]}  Be7 {[%clk 0:01:28]} 31. Rdd1 {[%clk 0:00:32]}  Rbc8 {[%clk 0:01:22]} 32. Ra1 {[%clk 0:00:30]}  Ne8 {[%clk 0:01:18]} 33. f5 {[%clk 0:00:27]}  Bc5 {[%clk 0:01:11]} 34. Kg2 {[%clk 0:00:26]}  Ng7 {[%clk 0:01:09]} 35. fxe6 {[%clk 0:00:22]}  fxe6 {[%clk 0:01:09]} 36. Be2 {[%clk 0:00:22]}  Rb8 {[%clk 0:01:08]} 37. Rf1 {[%clk 0:00:21]}  Ne8 {[%clk 0:01:03]} 38. h4 {[%clk 0:00:19]}  Be7 {[%clk 0:01:02]} 39. Rac1 {[%clk 0:00:16]}  Rcc8 {[%clk 0:00:56]} 40. h5 {[%clk 0:00:14]}  Bg5 {[%clk 0:00:53]} 41. Rcd1 {[%clk 0:00:06]}  Nc7 {[%clk 0:00:50]} 42. Bd3 {[%clk 0:00:05]}  gxh5 {[%clk 0:00:48]} 43. gxh5 {[%clk 0:00:06]}  Na6 {[%clk 0:00:48]} 44. Kh3 {[%clk 0:00:06]}  Nc5 {[%clk 0:00:47]} 45. Be2 {[%clk 0:00:06]}  Ne4 {[%clk 0:00:46]} 46. Bg4 {[%clk 0:00:06]}  Re8 {[%clk 0:00:44]} 47. Be1 {[%clk 0:00:05]}  Rb7 {[%clk 0:00:43]} 48. Rg1 {[%clk 0:00:05]}  h6 {[%clk 0:00:43]} 49. Bf3 {[%clk 0:00:05]}  Kh7 {[%clk 0:00:41]} 50. Rg4 {[%clk 0:00:04]}  Nc5 {[%clk 0:00:33]} 51. Be2 {[%clk 0:00:05]}  Rf8 {[%clk 0:00:33]} 52. b4 {[%clk 0:00:04]}  axb4 {[%clk 0:00:32]} 53. axb4 {[%clk 0:00:05]}  Ne4 {[%clk 0:00:32]} 54. Bd3 {[%clk 0:00:05]}  Rbf7 {[%clk 0:00:22]} 55. Kg2 {[%clk 0:00:05]}  Rf3 {[%clk 0:00:21]} 56. Rxe4 {[%clk 0:00:04]}  dxe4 {[%clk 0:00:21]} 57. Bxe4+ {[%clk 0:00:04]}  R3f5 {[%clk 0:00:22]} 58. Rd7+ {[%clk 0:00:04]}  Kg8 {[%clk 0:00:21]} 59. Bxf5 {[%clk 0:00:05]}  Rxf5 {[%clk 0:00:22]} 60. Bg3 {[%clk 0:00:05]}  Rf8 {[%clk 0:00:19]} 61. Rd6 {[%clk 0:00:04]}  Rc8 {[%clk 0:00:19]} 62. Rxe6 {[%clk 0:00:04]}  Rxc3 {[%clk 0:00:19]} 63. Rb6 {[%clk 0:00:05]}  Rc2+ {[%clk 0:00:19]} 64. Kf3 {[%clk 0:00:06]}  Rc3+ {[%clk 0:00:19]} 65. Kg4 {[%clk 0:00:04]}  Rc4+ {[%clk 0:00:19]} 66. Kf5 {[%clk 0:00:05]}  Rxb4 {[%clk 0:00:19]} 67. e6 {[%clk 0:00:05]}  Rd4 {[%clk 0:00:17]} 68. Be5 {[%clk 0:00:03]}  Rd8 {[%clk 0:00:16]} 69. Rxb5 {[%clk 0:00:04]}  Rf8+ {[%clk 0:00:15]} 70. Kg6 {[%clk 0:00:04]}  Re8 {[%clk 0:00:16]} 71. Rb6 {[%clk 0:00:04]}  Be3 {[%clk 0:00:15]} 72. Rc6 {[%clk 0:00:04]}  Bg5 {[%clk 0:00:15]} 73. Bg7 {[%clk 0:00:04]}  Be3 {[%clk 0:00:12]} 74. Bxh6 {[%clk 0:00:04]}  Bd4 {[%clk 0:00:12]} 75. Bg5 {[%clk 0:00:04]}  Ba1 {[%clk 0:00:10]} 76. h6 {[%clk 0:00:04]}  Kh8 {[%clk 0:00:10]} 77. e7 {[%clk 0:00:04]}  Bd4 {[%clk 0:00:09]} 78. Rd6 {[%clk 0:00:04]}  Be5 {[%clk 0:00:06]} 79. Rd8 {[%clk 0:00:05]} 1-0


[Site "https://www.chess.com"]

[Event "Titled Tuesday Blitz May 23 Early 2023"]
[White "Skliarov, Viktor"]
[Black "Stribuk, Artiom"]
[WhiteFideId "14106736"]
[BlackFideId "13515659"]
[WhiteElo "2317"]
[BlackElo "2303"]
[Result "1-0"]
[Round "08"]
[TimeControl "180+2"]
[Date "2023.05.23"]
[WhiteClock "0:00:15"]
[BlackClock "0:00:00"]

1. e4 {[%clk 0:03:00]}  c5 {[%clk 0:02:59]} 2. Nf3 {[%clk 0:02:59]}  d6 {[%clk 0:03:00]} 3. d4 {[%clk 0:02:59]}  cxd4 {[%clk 0:03:01]} 4. Qxd4 {[%clk 0:03:00]}  Nf6 {[%clk 0:02:59]} 5. Nc3 {[%clk 0:03:00]}  Nc6 {[%clk 0:02:59]} 6. Bb5 {[%clk 0:03:00]}  Bd7 {[%clk 0:03:00]} 7. Bxc6 {[%clk 0:03:01]}  Bxc6 {[%clk 0:03:01]} 8. Bg5 {[%clk 0:03:01]}  e6 {[%clk 0:03:01]} 9. O-O-O {[%clk 0:03:01]}  Be7 {[%clk 0:03:02]} 10. Rhe1 {[%clk 0:03:02]}  O-O {[%clk 0:02:58]} 11. Kb1 {[%clk 0:03:02]}  h6 {[%clk 0:02:51]} 12. Bh4 {[%clk 0:03:02]}  b5 {[%clk 0:02:45]} 13. Qd3 {[%clk 0:02:50]}  Qb6 {[%clk 0:02:05]} 14. Nd4 {[%clk 0:02:40]}  b4 {[%clk 0:01:42]} 15. Nxc6 {[%clk 0:02:35]}  Qxc6 {[%clk 0:01:43]} 16. Nb5 {[%clk 0:02:35]}  Rfd8 {[%clk 0:01:34]} 17. f3 {[%clk 0:02:28]}  a5 {[%clk 0:01:29]} 18. g4 {[%clk 0:02:24]}  a4 {[%clk 0:01:29]} 19. g5 {[%clk 0:02:15]}  hxg5 {[%clk 0:01:28]} 20. Bxg5 {[%clk 0:02:15]}  Ra5 {[%clk 0:01:20]} 21. Nd4 {[%clk 0:02:13]}  Qa6 {[%clk 0:01:12]} 22. Qxa6 {[%clk 0:01:49]}  Rxa6 {[%clk 0:01:13]} 23. f4 {[%clk 0:01:50]}  Kf8 {[%clk 0:01:06]} 24. f5 {[%clk 0:01:34]}  e5 {[%clk 0:00:43]} 25. Bxf6 {[%clk 0:00:48]}  Bxf6 {[%clk 0:00:44]} 26. Nb5 {[%clk 0:00:48]}  Ke7 {[%clk 0:00:43]} 27. Nc7 {[%clk 0:00:48]}  Ra7 {[%clk 0:00:19]} 28. Nd5+ {[%clk 0:00:48]}  Kd7 {[%clk 0:00:20]} 29. Nxb4 {[%clk 0:00:48]}  Rh8 {[%clk 0:00:21]} 30. Re2 {[%clk 0:00:47]}  Rh4 {[%clk 0:00:19]} 31. Nd5 {[%clk 0:00:45]}  Bg5 {[%clk 0:00:18]} 32. b3 {[%clk 0:00:32]}  Kc6 {[%clk 0:00:13]} 33. Kb2 {[%clk 0:00:23]}  Ra8 {[%clk 0:00:10]} 34. b4 {[%clk 0:00:20]}  Rah8 {[%clk 0:00:07]} 35. c4 {[%clk 0:00:18]}  Rxh2 {[%clk 0:00:07]} 36. Rxh2 {[%clk 0:00:19]}  Rxh2+ {[%clk 0:00:08]} 37. Ka3 {[%clk 0:00:19]}  Re2 {[%clk 0:00:05]} 38. Kxa4 {[%clk 0:00:19]}  Rxe4 {[%clk 0:00:05]} 39. Kb3 {[%clk 0:00:18]}  Re2 {[%clk 0:00:05]} 40. Nc3 {[%clk 0:00:18]}  Re3 {[%clk 0:00:04]} 41. b5+ {[%clk 0:00:16]}  Kd7 {[%clk 0:00:02]} 42. c5 {[%clk 0:00:14]}  Be7 {[%clk 0:00:01]} 43. c6+ {[%clk 0:00:15]}  Kc7 {[%clk 0:00:00]} 44. Kc4 {[%clk 0:00:15]} 1-0


[Site "https://www.chess.com"]

[Event "Titled Tuesday Blitz May 23 Early 2023"]
[White "Lewicki, Miroslaw"]
[Black "Molina, Roberto Junio Brito"]
[WhiteFideId "1113380"]
[BlackFideId "2109450"]
[WhiteElo "2212"]
[BlackElo "2376"]
[Result "0-1"]
[Round "08"]
[TimeControl "180+2"]
[Date "2023.05.23"]
[WhiteClock "0:00:00"]
[BlackClock "0:00:12"]

1. b3 {[%clk 0:02:57]}  d5 {[%clk 0:02:59]} 2. Bb2 {[%clk 0:02:58]}  Bg4 {[%clk 0:02:59]} 3. Nf3 {[%clk 0:02:55]}  Nd7 {[%clk 0:02:58]} 4. g3 {[%clk 0:02:55]}  Ngf6 {[%clk 0:02:56]} 5. Bg2 {[%clk 0:02:55]}  e6 {[%clk 0:02:57]} 6. O-O {[%clk 0:02:55]}  Bd6 {[%clk 0:02:57]} 7. d4 {[%clk 0:02:56]}  O-O {[%clk 0:02:56]} 8. Nbd2 {[%clk 0:02:56]}  Qe7 {[%clk 0:02:55]} 9. Ne5 {[%clk 0:02:56]}  Bf5 {[%clk 0:02:54]} 10. c4 {[%clk 0:02:53]}  c6 {[%clk 0:02:53]} 11. Ndf3 {[%clk 0:02:52]}  h6 {[%clk 0:02:52]} 12. a3 {[%clk 0:02:46]}  a5 {[%clk 0:02:50]} 13. c5 {[%clk 0:02:43]}  Bc7 {[%clk 0:02:50]} 14. b4 {[%clk 0:02:42]}  Nxe5 {[%clk 0:02:48]} 15. dxe5 {[%clk 0:02:35]}  Nd7 {[%clk 0:02:48]} 16. Qd2 {[%clk 0:02:31]}  Be4 {[%clk 0:02:44]} 17. Rfe1 {[%clk 0:02:25]}  Bxf3 {[%clk 0:02:19]} 18. exf3 {[%clk 0:02:24]}  b6 {[%clk 0:02:20]} 19. cxb6 {[%clk 0:02:21]}  Nxb6 {[%clk 0:02:16]} 20. Bf1 {[%clk 0:02:14]}  Rfb8 {[%clk 0:02:11]} 21. Bd4 {[%clk 0:02:12]}  axb4 {[%clk 0:02:07]} 22. axb4 {[%clk 0:02:11]}  Qd7 {[%clk 0:01:52]} 23. f4 {[%clk 0:02:08]}  Nc8 {[%clk 0:01:48]} 24. Rxa8 {[%clk 0:01:54]}  Rxa8 {[%clk 0:01:48]} 25. Rc1 {[%clk 0:01:55]}  Bb6 {[%clk 0:01:34]} 26. Bxb6 {[%clk 0:01:36]}  Nxb6 {[%clk 0:01:35]} 27. Qc3 {[%clk 0:01:35]}  Ra4 {[%clk 0:01:04]} 28. Qc5 {[%clk 0:01:31]}  Qb7 {[%clk 0:01:02]} 29. Qd6 {[%clk 0:01:25]}  Nc4 {[%clk 0:00:48]} 30. Qd8+ {[%clk 0:00:31]}  Kh7 {[%clk 0:00:45]} 31. h4 {[%clk 0:00:29]}  h5 {[%clk 0:00:20]} 32. Bxc4 {[%clk 0:00:11]}  dxc4 {[%clk 0:00:20]} 33. Rxc4 {[%clk 0:00:12]}  c5 {[%clk 0:00:19]} 34. Kh2 {[%clk 0:00:12]}  Ra2 {[%clk 0:00:17]} 35. Qd3+ {[%clk 0:00:07]}  g6 {[%clk 0:00:17]} 36. Qe3 {[%clk 0:00:02]}  cxb4 {[%clk 0:00:16]} 37. g4 {[%clk 0:00:03]}  hxg4 {[%clk 0:00:15]} 38. h5 {[%clk 0:00:03]}  Ra3 {[%clk 0:00:12]} 39. hxg6+ {[%clk 0:00:02]}  Kxg6 {[%clk 0:00:13]} 40. Qd2 {[%clk 0:00:01]}  Qf3 {[%clk 0:00:13]} 41. Qc2+ {[%clk 0:00:01]}  Kg7 {[%clk 0:00:12]} 42. f5 {[%clk 0:00:01]}  Qh3+ {[%clk 0:00:12]} 43. Kg1 {[%clk 0:00:00]}  Ra1+ {[%clk 0:00:12]} 0-1


[Site "https://www.chess.com"]

[Event "Titled Tuesday Blitz May 23 Early 2023"]
[White "Harsh Suresh"]
[Black "bubeliang"]
[WhiteFideId "45018464"]
[WhiteElo "2209"]
[BlackElo "2613"]
[Result "0-1"]
[Round "08"]
[TimeControl "180+2"]
[Date "2023.05.23"]
[WhiteClock "0:00:03"]
[BlackClock "0:00:09"]

1. e4 {[%clk 0:03:00]}  c6 {[%clk 0:02:36]} 2. Nf3 {[%clk 0:02:59]}  d5 {[%clk 0:02:34]} 3. Nc3 {[%clk 0:03:00]}  dxe4 {[%clk 0:02:32]} 4. Nxe4 {[%clk 0:03:01]}  Nf6 {[%clk 0:02:33]} 5. Qe2 {[%clk 0:02:57]}  Nxe4 {[%clk 0:02:28]} 6. Qxe4 {[%clk 0:02:58]}  Qd5 {[%clk 0:02:29]} 7. Qf4 {[%clk 0:02:54]}  Qf5 {[%clk 0:02:27]} 8. Qxf5 {[%clk 0:02:33]}  Bxf5 {[%clk 0:02:27]} 9. d3 {[%clk 0:02:34]}  g6 {[%clk 0:02:26]} 10. Be3 {[%clk 0:02:28]}  Bg7 {[%clk 0:02:23]} 11. Bd4 {[%clk 0:02:28]}  Bxd4 {[%clk 0:02:20]} 12. Nxd4 {[%clk 0:02:29]}  Bd7 {[%clk 0:02:12]} 13. a4 {[%clk 0:02:29]}  O-O {[%clk 0:02:10]} 14. a5 {[%clk 0:02:29]}  c5 {[%clk 0:02:00]} 15. Nb3 {[%clk 0:02:25]}  Na6 {[%clk 0:01:59]} 16. d4 {[%clk 0:02:24]}  Nb4 {[%clk 0:02:00]} 17. O-O-O {[%clk 0:02:19]}  Bf5 {[%clk 0:01:55]} 18. c3 {[%clk 0:02:15]}  Bc2 {[%clk 0:01:38]} 19. Nxc5 {[%clk 0:01:37]}  Bxd1 {[%clk 0:01:36]} 20. Kxd1 {[%clk 0:01:38]}  Nc6 {[%clk 0:01:15]} 21. Nxb7 {[%clk 0:01:38]}  Rab8 {[%clk 0:01:15]} 22. a6 {[%clk 0:01:27]}  e5 {[%clk 0:01:05]} 23. dxe5 {[%clk 0:01:13]}  Nxe5 {[%clk 0:00:59]} 24. Kc2 {[%clk 0:01:10]}  Ng4 {[%clk 0:00:50]} 25. f3 {[%clk 0:01:04]}  Ne3+ {[%clk 0:00:48]} 26. Kd2 {[%clk 0:00:47]}  Rfe8 {[%clk 0:00:41]} 27. g3 {[%clk 0:00:31]}  Re7 {[%clk 0:00:32]} 28. Bh3 {[%clk 0:00:26]}  Nd5 {[%clk 0:00:29]} 29. b4 {[%clk 0:00:20]}  Nb6 {[%clk 0:00:28]} 30. Kd3 {[%clk 0:00:12]}  Rbe8 {[%clk 0:00:25]} 31. Rd1 {[%clk 0:00:10]}  Re2 {[%clk 0:00:17]} 32. Rd2 {[%clk 0:00:07]}  R2e3+ {[%clk 0:00:17]} 33. Kc2 {[%clk 0:00:07]}  Rxf3 {[%clk 0:00:17]} 34. Kb3 {[%clk 0:00:06]}  Ree3 {[%clk 0:00:16]} 35. Rc2 {[%clk 0:00:05]}  Nd5 {[%clk 0:00:10]} 36. Bg2 {[%clk 0:00:05]}  Rxc3+ {[%clk 0:00:10]} 37. Rxc3 {[%clk 0:00:05]}  Rxc3+ {[%clk 0:00:11]} 38. Kb2 {[%clk 0:00:06]}  Rd3 {[%clk 0:00:11]} 39. Bxd5 {[%clk 0:00:04]}  Rxd5 {[%clk 0:00:12]} 40. Kc3 {[%clk 0:00:04]}  f5 {[%clk 0:00:10]} 41. Kc4 {[%clk 0:00:04]}  Rd1 {[%clk 0:00:09]} 42. b5 {[%clk 0:00:04]}  g5 {[%clk 0:00:08]} 43. Na5 {[%clk 0:00:04]}  f4 {[%clk 0:00:08]} 44. gxf4 {[%clk 0:00:04]}  gxf4 {[%clk 0:00:09]} 45. b6 {[%clk 0:00:03]}  axb6 {[%clk 0:00:09]} 46. a7 {[%clk 0:00:03]}  Rd8 {[%clk 0:00:09]} 47. Nc6 {[%clk 0:00:04]}  Ra8 {[%clk 0:00:07]} 48. Kd4 {[%clk 0:00:02]}  b5 {[%clk 0:00:08]} 49. Ke4 {[%clk 0:00:02]}  b4 {[%clk 0:00:08]} 50. Nxb4 {[%clk 0:00:01]}  Rxa7 {[%clk 0:00:08]} 51. Nd3 {[%clk 0:00:02]}  Ra4+ {[%clk 0:00:08]} 52. Kf3 {[%clk 0:00:02]}  Ra3 {[%clk 0:00:09]} 53. Ke4 {[%clk 0:00:03]}  Ra2 {[%clk 0:00:09]} 54. h3 {[%clk 0:00:02]}  Re2+ {[%clk 0:00:06]} 55. Kxf4 {[%clk 0:00:02]}  Re8 {[%clk 0:00:06]} 56. Nf2 {[%clk 0:00:02]}  Kg7 {[%clk 0:00:06]} 57. Kg3 {[%clk 0:00:03]}  Ra8 {[%clk 0:00:06]} 58. Ng4 {[%clk 0:00:04]}  Kg6 {[%clk 0:00:06]} 59. Ne5+ {[%clk 0:00:03]}  Kf5 {[%clk 0:00:06]} 60. Nf3 {[%clk 0:00:04]}  Ra3 {[%clk 0:00:05]} 61. Kf2 {[%clk 0:00:02]}  Kf4 {[%clk 0:00:06]} 62. Ng1 {[%clk 0:00:03]}  Ra2+ {[%clk 0:00:06]} 63. Ne2+ {[%clk 0:00:03]}  Ke4 {[%clk 0:00:06]} 64. Kf1 {[%clk 0:00:03]}  Kf3 {[%clk 0:00:06]} 65. Ng1+ {[%clk 0:00:03]}  Kg3 {[%clk 0:00:06]} 66. Ne2+ {[%clk 0:00:02]}  Kxh3 {[%clk 0:00:06]} 67. Kf2 {[%clk 0:00:03]}  Rxe2+ {[%clk 0:00:06]} 68. Kxe2 {[%clk 0:00:02]}  Kg2 {[%clk 0:00:07]} 69. Ke3 {[%clk 0:00:02]}  h5 {[%clk 0:00:07]} 70. Kf4 {[%clk 0:00:03]}  h4 {[%clk 0:00:08]} 71. Kg4 {[%clk 0:00:04]}  h3 {[%clk 0:00:09]} 72. Kf4 {[%clk 0:00:03]}  h2 {[%clk 0:00:09]} 0-1


[Site "https://www.chess.com"]

[Event "Titled Tuesday Blitz May 23 Early 2023"]
[White "Tristan, Leonardo"]
[Black "Sielecki, Christof"]
[WhiteFideId "113816"]
[BlackFideId "4620437"]
[WhiteElo "2461"]
[BlackElo "2443"]
[Result "0-1"]
[Round "08"]
[TimeControl "180+2"]
[Date "2023.05.23"]
[WhiteClock "0:00:00"]
[BlackClock "0:00:20"]

1. d4 {[%clk 0:03:00]}  d5 {[%clk 0:02:59]} 2. Nf3 {[%clk 0:03:01]}  Nf6 {[%clk 0:02:59]} 3. Bf4 {[%clk 0:03:01]}  e6 {[%clk 0:02:58]} 4. e3 {[%clk 0:03:01]}  Bd6 {[%clk 0:02:59]} 5. Bg3 {[%clk 0:03:01]}  O-O {[%clk 0:02:59]} 6. c4 {[%clk 0:03:01]}  c5 {[%clk 0:02:56]} 7. Nc3 {[%clk 0:03:00]}  cxd4 {[%clk 0:02:52]} 8. Nxd4 {[%clk 0:03:00]}  Bxg3 {[%clk 0:02:45]} 9. hxg3 {[%clk 0:03:00]}  h6 {[%clk 0:02:42]} 10. Qc2 {[%clk 0:02:51]}  Nc6 {[%clk 0:02:37]} 11. Rd1 {[%clk 0:02:39]}  Nxd4 {[%clk 0:02:28]} 12. Rxd4 {[%clk 0:02:38]}  Qa5 {[%clk 0:02:22]} 13. cxd5 {[%clk 0:02:15]}  Nxd5 {[%clk 0:02:14]} 14. Rh5 {[%clk 0:02:15]}  Nxe3 {[%clk 0:01:30]} 15. Qe2 {[%clk 0:02:11]}  Nf5 {[%clk 0:01:24]} 16. Ra4 {[%clk 0:01:57]}  Qb6 {[%clk 0:01:21]} 17. g4 {[%clk 0:01:55]}  Nd4 {[%clk 0:01:21]} 18. Qd2 {[%clk 0:01:55]}  Rd8 {[%clk 0:01:14]} 19. Nd5 {[%clk 0:01:54]}  Rxd5 {[%clk 0:01:07]} 20. Rxd5 {[%clk 0:01:54]}  exd5 {[%clk 0:01:08]} 21. Qxd4 {[%clk 0:01:48]}  Qxd4 {[%clk 0:01:03]} 22. Rxd4 {[%clk 0:01:49]}  Be6 {[%clk 0:01:02]} 23. Be2 {[%clk 0:01:49]}  Rd8 {[%clk 0:01:00]} 24. a4 {[%clk 0:01:44]}  Kf8 {[%clk 0:01:00]} 25. a5 {[%clk 0:01:44]}  Ke7 {[%clk 0:01:00]} 26. Rb4 {[%clk 0:01:29]}  Rb8 {[%clk 0:00:59]} 27. Kd2 {[%clk 0:01:22]}  Kd6 {[%clk 0:01:00]} 28. Kc3 {[%clk 0:01:20]}  b6 {[%clk 0:00:58]} 29. Kd4 {[%clk 0:01:19]}  f6 {[%clk 0:00:53]} 30. Rb3 {[%clk 0:01:11]}  Bd7 {[%clk 0:00:49]} 31. Bf3 {[%clk 0:01:02]}  Bc6 {[%clk 0:00:49]} 32. a6 {[%clk 0:00:40]}  b5 {[%clk 0:00:37]} 33. Rc3 {[%clk 0:00:34]}  Rb6 {[%clk 0:00:35]} 34. Ra3 {[%clk 0:00:25]}  b4 {[%clk 0:00:32]} 35. Ra5 {[%clk 0:00:25]}  Rb5 {[%clk 0:00:27]} 36. Ra1 {[%clk 0:00:23]}  b3 {[%clk 0:00:22]} 37. Kc3 {[%clk 0:00:19]}  Kc5 {[%clk 0:00:21]} 38. Be2 {[%clk 0:00:15]}  Rb4 {[%clk 0:00:20]} 39. Ra5+ {[%clk 0:00:15]}  Bb5 {[%clk 0:00:20]} 40. Bxb5 {[%clk 0:00:05]}  Rxb5 {[%clk 0:00:20]} 41. Rxb5+ {[%clk 0:00:02]}  Kxb5 {[%clk 0:00:20]} 42. Kd4 {[%clk 0:00:03]}  Kxa6 {[%clk 0:00:17]} 43. Kxd5 {[%clk 0:00:03]}  Kb5 {[%clk 0:00:17]} 44. Ke6 {[%clk 0:00:02]}  a5 {[%clk 0:00:18]} 45. Kf7 {[%clk 0:00:03]}  a4 {[%clk 0:00:18]} 46. Kxg7 {[%clk 0:00:03]}  a3 {[%clk 0:00:19]} 47. bxa3 {[%clk 0:00:04]}  b2 {[%clk 0:00:20]} 48. Kxh6 {[%clk 0:00:00]}  b1=Q {[%clk 0:00:20]} 0-1


[Site "https://www.chess.com"]

[Event "Titled Tuesday Blitz May 23 Early 2023"]
[White "Miranda, Rafael"]
[Black "Vakhlamov, Igor L."]
[WhiteFideId "130990"]
[BlackFideId "24126748"]
[WhiteElo "2204"]
[BlackElo "2407"]
[Result "0-1"]
[Round "08"]
[TimeControl "180+2"]
[Date "2023.05.23"]
[WhiteClock "0:00:10"]
[BlackClock "0:00:05"]

1. e4 {[%clk 0:03:00]}  c5 {[%clk 0:02:59]} 2. Nf3 {[%clk 0:03:00]}  e6 {[%clk 0:03:00]} 3. c3 {[%clk 0:03:01]}  d5 {[%clk 0:03:00]} 4. d3 {[%clk 0:02:59]}  Nc6 {[%clk 0:02:58]} 5. Be2 {[%clk 0:02:58]}  g6 {[%clk 0:02:56]} 6. O-O {[%clk 0:02:57]}  Bg7 {[%clk 0:02:56]} 7. Bg5 {[%clk 0:02:55]}  Nge7 {[%clk 0:02:53]} 8. Nbd2 {[%clk 0:02:54]}  h6 {[%clk 0:02:52]} 9. Bxe7 {[%clk 0:02:51]}  Qxe7 {[%clk 0:02:48]} 10. a4 {[%clk 0:02:52]}  O-O {[%clk 0:02:49]} 11. Re1 {[%clk 0:02:52]}  Qc7 {[%clk 0:02:47]} 12. Bf1 {[%clk 0:02:51]}  b6 {[%clk 0:02:47]} 13. g3 {[%clk 0:02:46]}  Bb7 {[%clk 0:02:47]} 14. Bg2 {[%clk 0:02:47]}  Rad8 {[%clk 0:02:47]} 15. Qc2 {[%clk 0:02:47]}  Rfe8 {[%clk 0:02:44]} 16. h4 {[%clk 0:02:39]}  Ba6 {[%clk 0:02:42]} 17. Rad1 {[%clk 0:02:27]}  dxe4 {[%clk 0:02:40]} 18. dxe4 {[%clk 0:02:21]}  Bd3 {[%clk 0:02:39]} 19. Qb3 {[%clk 0:02:21]}  Na5 {[%clk 0:02:37]} 20. Qa2 {[%clk 0:02:21]}  c4 {[%clk 0:02:33]} 21. Bf1 {[%clk 0:02:19]}  Qc5 {[%clk 0:02:28]} 22. Re3 {[%clk 0:01:47]}  Bxf1 {[%clk 0:02:16]} 23. Rxf1 {[%clk 0:01:44]}  Rd7 {[%clk 0:02:13]} 24. Rfe1 {[%clk 0:01:39]}  Red8 {[%clk 0:02:13]} 25. Nf1 {[%clk 0:01:40]}  Nb3 {[%clk 0:02:06]} 26. e5 {[%clk 0:01:40]}  Rd1 {[%clk 0:02:00]} 27. h5 {[%clk 0:01:34]}  g5 {[%clk 0:01:57]} 28. N1h2 {[%clk 0:01:34]}  Nc1 {[%clk 0:01:15]} 29. Qb1 {[%clk 0:01:26]}  Ne2+ {[%clk 0:01:12]} 30. Rxe2 {[%clk 0:01:27]}  Rxb1 {[%clk 0:01:12]} 31. Rxb1 {[%clk 0:01:28]}  Rd3 {[%clk 0:01:11]} 32. Re4 {[%clk 0:01:23]}  a6 {[%clk 0:01:05]} 33. Kg2 {[%clk 0:01:17]}  Qd5 {[%clk 0:00:59]} 34. Rbe1 {[%clk 0:01:17]}  b5 {[%clk 0:00:59]} 35. axb5 {[%clk 0:01:17]}  axb5 {[%clk 0:01:00]} 36. Ng4 {[%clk 0:01:17]}  Qa8 {[%clk 0:00:47]} 37. R1e3 {[%clk 0:01:02]}  Rd1 {[%clk 0:00:40]} 38. Re1 {[%clk 0:00:48]}  Rd3 {[%clk 0:00:30]} 39. R1e3 {[%clk 0:00:48]}  Rd5 {[%clk 0:00:27]} 40. Kh2 {[%clk 0:00:43]}  Qa1 {[%clk 0:00:25]} 41. Re2 {[%clk 0:00:43]}  Rd1 {[%clk 0:00:22]} 42. Kg2 {[%clk 0:00:42]}  Rb1 {[%clk 0:00:19]} 43. Rd4 {[%clk 0:00:40]}  Rxb2 {[%clk 0:00:14]} 44. Rd8+ {[%clk 0:00:41]}  Kh7 {[%clk 0:00:15]} 45. Re3 {[%clk 0:00:38]}  Qa7 {[%clk 0:00:12]} 46. Nd4 {[%clk 0:00:30]}  Qb7+ {[%clk 0:00:07]} 47. Rf3 {[%clk 0:00:23]}  b4 {[%clk 0:00:08]} 48. cxb4 {[%clk 0:00:23]}  c3 {[%clk 0:00:07]} 49. Ne3 {[%clk 0:00:17]}  Rd2 {[%clk 0:00:04]} 50. Nxe6 {[%clk 0:00:14]}  fxe6 {[%clk 0:00:04]} 51. Rxd2 {[%clk 0:00:12]}  cxd2 {[%clk 0:00:05]} 52. Kf1 {[%clk 0:00:13]}  Qxf3 {[%clk 0:00:05]} 53. Kg1 {[%clk 0:00:10]}  Bxe5 {[%clk 0:00:05]} 0-1


[Site "https://www.chess.com"]